[Event "XII Cracow ICC-B 2024"]
[Site "Krakow"]
[Date "2024.06.23"]
[Round "3.1"]
[White "Padalka, Artem"]
[Black "Nun, Grzegorz"]
[Result "0-1"]
[ECO "D13"]
[WhiteElo "2177"]
[BlackElo "1921"]
[Annotator "RC"]
[PlyCount "90"]
[EventDate "2024.06.20"]
[EventType "swiss"]
[EventCountry "POL"]
[SourceTitle "playchess.com"]
[Source "ChessBase"]
[SourceQuality "1"]
[TimeControl "40/5400+30:1800+30"]

1. d4 {[%emt 0:02:23]} Nf6 {[%emt 0:00:06]} 2. Nf3 {[%emt 0:00:41]} c5 {[%emt 0:00:27]} 3. c3 {[%emt 0:02:29]} cxd4 {[%emt 0:02:17]} 4. cxd4 {[%emt 0:00:20]} d5 {[%emt 0:01:57]} 5. Nc3 {[%emt 0:00:28]} g6 {[%emt 0:01:09]} 6. Bf4 {[%emt 0:02:02]} Bg7 {[%emt 0:00:54]} 7. e3 {[%emt 0:11:30]} O-O {[%emt 0:04:49]} 8. Be2 {[%emt 0:04:26]} Nc6 {[%emt 0:02:03]} 9. Ne5 {[%emt 0:01:29]} Be6 {[%emt 0:06:48]} 10. O-O {[%emt 0:02:08]} Nxe5 {[%emt 0:04:40]} 11. Bxe5 {[%emt 0:06:16]} Nd7 {[%emt 0:05:14]} 12. Bf4 {[%emt 0:05:52]} Qb6 {[%emt 0:11:16]} 13. Bf3 {[%emt 0:16:45]} Nf6 {[%emt 0:09:43]} 14. Na4 {[%emt 0:01:04]} Qd8 {[%emt 0:03:59]} 15. Nc5 {[%emt 0:09:09]} Bc8 {[%emt 0:01:08]} 16. Qa4 {[%emt 0:01:46]} Nd7 {[%emt 0:08:06]} 17. Rac1 {[%emt 0:04:04]} e5 {[%emt 0:03:29]} 18. dxe5 {[%emt 0:05:20]} Nxe5 {[%emt 0:00:10]} 19. Bxe5 {[%emt 0:05:30]} Bxe5 {[%emt 0:00:11]} 20. Qb3 {[%emt 0:01:54]} d4 {[%emt 0:03:15]} 21. Rfd1 {[%emt 0:04:30]} Qh4 {[%emt 0:02:13]} 22. g3 {[%emt 0:00:39]} Qf6 {[%emt 0:00:16]} 23. e4 {[%emt 0:02:50]} b6 {[%emt 0:03:17]} 24. Na4 {[%emt 0:01:50]} Be6 {[%emt 0:02:21]} 25. Qd3 {[%emt 0:01:24]} Bxa2 {[%emt 0:02:32]} 26. Bg2 {[%emt 0:05:17]} g5 {[%emt 0:01:00]} 27. h4 {[%emt 0:00:08]} h6 {[%emt 0:00:14]} 28. hxg5 {[%emt 0:00:09]} hxg5 {[%emt 0:00:04]} 29. Bh3 {[%emt 0:01:32]} Be6 {[%emt 0:03:14]} 30. Rc6 {[%emt 0:00:10]} Rac8 {[%emt 0:02:41]} 31. Rdc1 {[%emt 0:00:01]} Rxc6 {[%emt 0:00:26]} 32. Rxc6 {[%emt 0:00:01]} Qe7 {[%emt 0:00:44]} 33. Bxe6 {[%emt 0:00:34]} fxe6 {[%emt 0:00:04]} 34. Qc4 {[%emt 0:00:48]} Kf7 {[%emt 0:04:20]} 35. b4 {[%emt 0:00:37]} Qf6 {[%emt 0:00:17]} 36. Nb2 {[%emt 0:00:23]} Kg7 {[%emt 0:00:16]} 37. Nd3 {[%emt 0:00:23]} Bxg3 {[%emt 0:00:43]} 38. Rxe6 {[%emt 0:00:48]} Bxf2+ {[%emt 0:01:26]} 39. Kf1 {[%emt 0:01:33]} Qf3 {[%emt 0:00:50]} 40. Qc7+ {[%emt 0:00:27]} Rf7 {[%emt 0:00:14]} 41. Rg6+ {[%emt 0:30:46]} Kh7 {[%emt 0:31:21]} 42. Qxf7+ {[%emt 0:00:00]} Qxf7 {[%emt 0:00:00]} 43. Rxg5 {[%emt 0:00:00]} Be3+ {[%emt 0:00:00]} 44. Rf5 {[%emt 0:00:00]} Qc4 {[%emt 0:00:00]} 45. Ke2 {[%emt 0:00:00]} Qc2+ {[%emt 0:00:00]} 0-1

[Event "XII Cracow ICC-B 2024"]
[Site "Krakow"]
[Date "2024.06.23"]
[Round "3.2"]
[White "Botez, Andrea"]
[Black "Klimaszewski, Dariusz"]
[Result "0-1"]
[ECO "B07"]
[WhiteElo "1906"]
[BlackElo "2152"]
[Annotator "RC"]
[PlyCount "82"]
[EventDate "2024.06.20"]
[EventType "swiss"]
[EventCountry "POL"]
[SourceTitle "playchess.com"]
[Source "ChessBase"]
[SourceQuality "1"]
[TimeControl "40/5400+30:1800+30"]

1. d4 {[%emt 0:00:57]} Nf6 {[%emt 0:00:19]} 2. Nc3 {[%emt 0:00:16]} g6 {[%emt 0:00:40]} 3. e4 {[%emt 0:00:24]} d6 {[%emt 0:00:09]} 4. Be3 {[%emt 0:00:08]} Bg7 {[%emt 0:00:10]} 5. Qd2 {[%emt 0:00:26]} O-O {[%emt 0:00:26]} 6. O-O-O {[%emt 0:02:06]} a6 {[%emt 0:01:47]} 7. f3 {[%emt 0:00:35]} b5 {[%emt 0:02:38]} 8. Bh6 {[%emt 0:03:29]} Nbd7 {[%emt 0:02:29]} 9. Bxg7 {[%emt 0:04:08]} Kxg7 {[%emt 0:00:12]} 10. e5 {[%emt 0:00:15]} Ng8 {[%emt 0:01:02]} 11. h4 {[%emt 0:01:05]} e6 {[%emt 0:01:32]} 12. h5 {[%emt 0:01:04]} d5 {[%emt 0:01:03]} 13. hxg6 {[%emt 0:22:21]} fxg6 {[%emt 0:00:48]} 14. Nh3 {[%emt 0:01:17]} Re8 {[%emt 0:00:44]} 15. Ng5 {[%emt 0:19:00]} h6 {[%emt 0:03:42]} 16. Nxe6+ {[%emt 0:10:21]} Rxe6 {[%emt 0:00:20]} 17. Nxd5 {[%emt 0:00:07]} Nf8 {[%emt 0:13:19]} 18. Nc3 {[%emt 0:07:30]} c5 {[%emt 0:03:19]} 19. Qe3 {[%emt 0:05:09]} cxd4 {[%emt 0:02:24]} 20. Rxd4 {[%emt 0:00:26]} Qc7 {[%emt 0:01:13]} 21. f4 {[%emt 0:00:35]} Bb7 {[%emt 0:00:21]} 22. Rh2 {[%emt 0:13:18]} Qc5 {[%emt 0:08:25]} 23. Ne4 {[%emt 0:03:13]} Bxe4 {[%emt 0:03:42]} 24. Qxe4 {[%emt 0:00:04]} Ne7 {[%emt 0:02:23]} 25. g4 {[%emt 0:00:19]} Rc8 {[%emt 0:00:42]} 26. Rhd2 {[%emt 0:00:37]} g5 {[%emt 0:02:40]} 27. b4 {[%emt 0:03:20]} Qc3 {[%emt 0:01:58]} 28. Kb1 {[%emt 0:00:40]} gxf4 {[%emt 0:00:28]} 29. Qxf4 {[%emt 0:00:05]} Nfg6 {[%emt 0:00:38]} 30. Qf2 {[%emt 0:01:14]} Rf8 {[%emt 0:00:39]} 31. Qe1 {[%emt 0:00:34]} Rxe5 {[%emt 0:00:12]} 32. Qc1 {[%emt 0:00:26]} Nf4 {[%emt 0:03:11]} 33. a3 {[%emt 0:00:04]} Ned5 {[%emt 0:00:39]} 34. Ka2 {[%emt 0:00:39]} Rfe8 {[%emt 0:02:28]} 35. Rd1 {[%emt 0:00:54]} Re1 {[%emt 0:03:46]} 36. Qb2 {[%emt 0:00:12]} Qxb2+ {[%emt 0:01:59]} 37. Kxb2 {[%emt 0:00:02]} Rxd1 {[%emt 0:00:12]} 38. Rxd1 {[%emt 0:00:01]} Ne3 {[%emt 0:00:58]} 39. Rd7+ {[%emt 0:00:03]} Kf6 {[%emt 0:00:17]} 40. Rd6+ {[%emt 0:01:55]} Re6 {[%emt 0:00:22]} 41. Rxe6+ {[%emt 0:31:10]} Kxe6 {[%emt 0:32:06]} 0-1

[Event "XII Cracow ICC-B 2024"]
[Site "Krakow"]
[Date "2024.06.23"]
[Round "3.3"]
[White "Sypien, Natan"]
[Black "Gbyl, Andrzej"]
[Result "0-1"]
[ECO "B19"]
[WhiteElo "1923"]
[BlackElo "2152"]
[Annotator "RC"]
[PlyCount "120"]
[EventDate "2024.06.20"]
[EventType "swiss"]
[EventCountry "POL"]
[SourceTitle "playchess.com"]
[Source "ChessBase"]
[SourceQuality "1"]
[TimeControl "40/5400+30:1800+30"]

1. e4 {[%emt 0:00:51]} c6 {[%emt 0:00:10]} 2. d4 {[%emt 0:00:05]} d5 {[%emt 0:00:05]} 3. Nc3 {[%emt 0:00:06]} dxe4 {[%emt 0:00:09]} 4. Nxe4 {[%emt 0:00:04]} Bf5 {[%emt 0:00:13]} 5. Ng3 {[%emt 0:00:18]} Bg6 {[%emt 0:00:07]} 6. h4 {[%emt 0:00:06]} h6 {[%emt 0:00:10]} 7. Nf3 {[%emt 0:00:13]} Nd7 {[%emt 0:00:11]} 8. h5 {[%emt 0:00:10]} Bh7 {[%emt 0:00:07]} 9. Bd3 {[%emt 0:00:16]} Bxd3 {[%emt 0:00:05]} 10. Qxd3 {[%emt 0:00:04]} e6 {[%emt 0:00:19]} 11. Bd2 {[%emt 0:00:13]} Ngf6 {[%emt 0:00:14]} 12. O-O-O {[%emt 0:00:15]} Be7 {[%emt 0:00:47]} 13. Kb1 {[%emt 0:00:18]} O-O {[%emt 0:01:52]} 14. Ne4 {[%emt 0:00:24]} c5 {[%emt 0:06:47]} 15. g4 {[%emt 0:00:08]} Nxg4 {[%emt 0:03:56]} 16. Qe2 {[%emt 0:00:27]} Qb6 {[%emt 0:05:52]} 17. Ne5 {[%emt 0:00:26]} Ndxe5 {[%emt 0:02:24]} 18. dxe5 {[%emt 0:00:10]} f5 {[%emt 0:02:47]} 19. exf6 {[%emt 0:00:04]} Nxf6 {[%emt 0:00:45]} 20. Nxf6+ {[%emt 0:02:36]} Bxf6 {[%emt 0:00:08]} 21. b3 {[%emt 0:00:37]} Bd4 {[%emt 0:06:25]} 22. Qg4 {[%emt 0:16:44]} Kh8 {[%emt 0:07:20]} 23. Rhg1 {[%emt 0:02:59]} Qc7 {[%emt 0:04:13]} 24. Qxe6 {[%emt 0:11:50]} Rxf2 {[%emt 0:05:30]} 25. Rg6 {[%emt 0:17:55]} Qf7 {[%emt 0:02:44]} 26. c3 {[%emt 0:10:56]} Qxe6 {[%emt 0:01:37]} 27. Rxe6 {[%emt 0:00:05]} Bf6 {[%emt 0:00:21]} 28. Be1 {[%emt 0:04:05]} Rf5 {[%emt 0:00:47]} 29. Rd7 {[%emt 0:03:13]} b6 {[%emt 0:00:58]} 30. Bd2 {[%emt 0:00:32]} Rxh5 {[%emt 0:00:16]} 31. a4 {[%emt 0:00:05]} Rh3 {[%emt 0:03:45]} 32. Kc2 {[%emt 0:00:07]} h5 {[%emt 0:05:47]} 33. Be3 {[%emt 0:02:00]} h4 {[%emt 0:01:01]} 34. a5 {[%emt 0:02:30]} Rg3 {[%emt 0:02:30]} 35. Re4 {[%emt 0:03:21]} Rg2+ {[%emt 0:03:09]} 36. Rd2 {[%emt 0:03:04]} Rxd2+ {[%emt 0:00:30]} 37. Bxd2 {[%emt 0:00:30]} Kg8 {[%emt 0:00:30]} 38. axb6 {[%emt 0:00:30]} axb6 {[%emt 0:00:30]} 39. Kd3 {[%emt 0:00:30]} b5 {[%emt 0:00:30]} 40. Re6 {[%emt 0:00:30]} Rd8+ {[%emt 0:00:30]} 41. Kc2 {[%emt 0:30:30]} Rd5 {[%emt 0:30:10]} 42. c4 {[%emt 0:00:40]} bxc4 {[%emt 0:00:19]} 43. bxc4 {[%emt 0:00:01]} Rf5 {[%emt 0:03:52]} 44. Kd3 {[%emt 0:00:30]} h3 {[%emt 0:01:07]} 45. Re1 {[%emt 0:01:42]} Rf2 {[%emt 0:00:30]} 46. Rg1 {[%emt 0:00:30]} Bd4 {[%emt 0:00:30]} 47. Rh1 {[%emt 0:00:30]} h2 {[%emt 0:00:30]} 48. Be1 {[%emt 0:00:21]} Rf1 {[%emt 0:04:05]} 49. Rxf1 {[%emt 0:00:47]} Bg1 {[%emt 0:00:05]} 50. Bf2 {[%emt 0:00:01]} Bxf2 {[%emt 0:00:07]} 51. Rh1 {[%emt 0:02:28]} Bg1 {[%emt 0:00:18]} 52. Ke4 {[%emt 0:00:05]} Kf7 {[%emt 0:00:11]} 53. Kf5 {[%emt 0:00:27]} g6+ {[%emt 0:00:13]} 54. Ke5 {[%emt 0:00:16]} Ke7 {[%emt 0:00:07]} 55. Ke4 {[%emt 0:00:26]} Ke6 {[%emt 0:00:23]} 56. Kf4 {[%emt 0:00:15]} Kf6 {[%emt 0:00:04]} 57. Kg4 {[%emt 0:00:36]} g5 {[%emt 0:00:21]} 58. Kg3 {[%emt 0:00:07]} Ke5 {[%emt 0:00:25]} 59. Kh3 {[%emt 0:00:45]} Kd4 {[%emt 0:00:09]} 60. Rxg1 {[%emt 0:00:06]} hxg1=R {[%emt 0:00:23]} 0-1

[Event "XII Cracow ICC-B 2024"]
[Site "Krakow"]
[Date "2024.06.23"]
[Round "3.4"]
[White "Botez, Alexandra"]
[Black "Ciupka, Kamil"]
[Result "1-0"]
[ECO "E85"]
[WhiteElo "2011"]
[BlackElo "1806"]
[Annotator "RC"]
[PlyCount "155"]
[EventDate "2024.06.20"]
[EventType "swiss"]
[EventCountry "POL"]
[SourceTitle "playchess.com"]
[Source "ChessBase"]
[SourceQuality "1"]
[TimeControl "40/5400+30:1800+30"]

1. d4 {[%emt 0:00:46]} Nf6 {[%emt 0:01:34]} 2. c4 {[%emt 0:00:07]} g6 {[%emt 0:00:43]} 3. f3 {[%emt 0:00:23]} Bg7 {[%emt 0:00:37]} 4. e4 {[%emt 0:00:08]} d6 {[%emt 0:00:02]} 5. Nc3 {[%emt 0:00:09]} O-O {[%emt 0:02:16]} 6. Be3 {[%emt 0:00:10]} e5 {[%emt 0:08:22]} 7. Nge2 {[%emt 0:01:05]} exd4 {[%emt 0:09:34]} 8. Nxd4 {[%emt 0:00:13]} Nc6 {[%emt 0:00:20]} 9. Be2 {[%emt 0:01:52]} Nxd4 {[%emt 0:09:53]} 10. Bxd4 {[%emt 0:00:08]} Be6 {[%emt 0:00:24]} 11. O-O {[%emt 0:00:37]} Nd7 {[%emt 0:05:53]} 12. Nd5 {[%emt 0:01:31]} Bxd5 {[%emt 0:18:18]} 13. Bxg7 {[%emt 0:07:07]} Kxg7 {[%emt 0:00:16]} 14. Qxd5 {[%emt 0:00:35]} b6 {[%emt 0:11:25]} 15. b3 {[%emt 0:10:11]} Qe7 {[%emt 0:00:46]} 16. Rfe1 {[%emt 0:03:03]} Qe5 {[%emt 0:05:31]} 17. Rad1 {[%emt 0:02:50]} Nf6 {[%emt 0:08:56]} 18. Qd2 {[%emt 0:12:07]} a5 {[%emt 0:03:41]} 19. Bf1 {[%emt 0:00:30]} Qc5+ {[%emt 0:00:17]} 20. Kh1 {[%emt 0:00:15]} Rfe8 {[%emt 0:01:09]} 21. g3 {[%emt 0:01:38]} Re7 {[%emt 0:02:14]} 22. Ra1 {[%emt 0:02:24]} Rae8 {[%emt 0:03:30]} 23. a3 {[%emt 0:00:11]} Nd7 {[%emt 0:03:55]} 24. b4 {[%emt 0:01:39]} Qh5 {[%emt 0:00:53]} 25. Bg2 {[%emt 0:00:43]} Kg8 {[%emt 0:00:47]} 26. Qc3 {[%emt 0:01:33]} axb4 {[%emt 0:01:26]} 27. axb4 {[%emt 0:00:05]} Ne5 {[%emt 0:00:27]} 28. c5 {[%emt 0:03:25]} dxc5 {[%emt 0:00:40]} 29. bxc5 {[%emt 0:00:06]} Nd7 {[%emt 0:00:28]} 30. cxb6 {[%emt 0:00:31]} cxb6 {[%emt 0:00:38]} 31. f4 {[%emt 0:00:20]} Qc5 {[%emt 0:00:26]} 32. Qb3 {[%emt 0:00:53]} Qc7 {[%emt 0:00:31]} 33. e5 {[%emt 0:01:00]} Nc5 {[%emt 0:00:16]} 34. Qb5 {[%emt 0:00:26]} Rd8 {[%emt 0:00:46]} 35. Rec1 {[%emt 0:02:09]} Rd2 {[%emt 0:00:29]} 36. Rab1 {[%emt 0:03:33]} Red7 {[%emt 0:00:09]} 37. Qc6 {[%emt 0:24:26]} Qd8 {[%emt 0:00:43]} 38. Rf1 {[%emt 0:01:08]} Nd3 {[%emt 0:00:41]} 39. e6 {[%emt 0:06:27]} Rd6 {[%emt 0:00:27]} 40. exf7+ {[%emt 0:00:17]} Kxf7 {[%emt 0:00:06]} 41. Qc4+ {[%emt 0:30:07]} Kf8 {[%emt 0:30:51]} 42. Qc3 {[%emt 0:00:31]} Nf2+ {[%emt 0:00:00]} 43. Kg1 {[%emt 0:00:00]} Ng4 {[%emt 0:00:00]} 44. Qh8+ {[%emt 0:00:00]} Kf7 {[%emt 0:00:00]} 45. Qxh7+ {[%emt 0:00:00]} Kf8 {[%emt 0:00:00]} 46. Qh8+ {[%emt 0:00:00]} Kf7 {[%emt 0:00:00]} 47. Qxd8 {[%emt 0:00:00]} Rxd8 {[%emt 0:00:00]} 48. Rfe1 {[%emt 0:00:00]} R8d6 {[%emt 0:00:00]} 49. h3 {[%emt 0:00:00]} Nf6 {[%emt 0:00:00]} 50. Bf1 {[%emt 0:00:00]} Rc2 {[%emt 0:00:00]} 51. Rb3 {[%emt 0:00:00]} Nh5 {[%emt 0:00:00]} 52. Rbe3 {[%emt 0:00:00]} Rc7 {[%emt 0:00:00]} 53. Kf2 {[%emt 0:00:00]} Rd2+ {[%emt 0:00:00]} 54. Kf3 {[%emt 0:00:00]} Nf6 {[%emt 0:00:00]} 55. Rb3 {[%emt 0:00:00]} Rcc2 {[%emt 0:00:00]} 56. Re2 {[%emt 0:00:00]} Rxe2 {[%emt 0:03:26]} 57. Bxe2 {[%emt 0:00:00]} Nd5 {[%emt 0:00:49]} 58. Bd3 {[%emt 0:00:00]} Rc3 {[%emt 0:02:51]} 59. Rxc3 {[%emt 0:00:00]} Nxc3 {[%emt 0:00:07]} 60. Kg4 {[%emt 0:04:38]} Nd1 {[%emt 0:02:00]} 61. Kg5 {[%emt 0:00:29]} Nf2 {[%emt 0:00:53]} 62. Bxg6+ {[%emt 0:00:16]} Kg7 {[%emt 0:00:10]} 63. Bf5 {[%emt 0:00:13]} b5 {[%emt 0:00:24]} 64. h4 {[%emt 0:00:09]} b4 {[%emt 0:00:17]} 65. h5 {[%emt 0:00:59]} b3 {[%emt 0:00:17]} 66. h6+ {[%emt 0:00:09]} Kh8 {[%emt 0:00:04]} 67. Bb1 {[%emt 0:00:48]} Nh1 {[%emt 0:01:45]} 68. g4 {[%emt 0:00:10]} Nf2 {[%emt 0:00:24]} 69. f5 {[%emt 0:00:11]} Nh3+ {[%emt 0:00:04]} 70. Kh4 {[%emt 0:00:41]} Nf4 {[%emt 0:00:09]} 71. f6 {[%emt 0:00:24]} Ne6 {[%emt 0:00:07]} 72. g5 {[%emt 0:00:15]} b2 {[%emt 0:00:33]} 73. Kg4 {[%emt 0:00:33]} Nf8 {[%emt 0:00:33]} 74. Kf5 {[%emt 0:00:11]} Nd7 {[%emt 0:00:37]} 75. g6 {[%emt 0:00:17]} Nxf6 {[%emt 0:00:34]} 76. Kxf6 {[%emt 0:00:07]} Kg8 {[%emt 0:00:05]} 77. h7+ {[%emt 0:00:17]} Kh8 {[%emt 0:00:04]} 78. g7# {[%emt 0:00:05]} 1-0

[Event "XII Cracow ICC-B 2024"]
[Site "Krakow"]
[Date "2024.06.23"]
[Round "3.5"]
[White "Zalega, Maciej"]
[Black "Rainer, Piotr"]
[Result "1/2-1/2"]
[ECO "B90"]
[WhiteElo "2109"]
[BlackElo "1910"]
[Annotator "RC"]
[PlyCount "81"]
[EventDate "2024.06.20"]
[EventType "swiss"]
[EventCountry "POL"]
[SourceTitle "playchess.com"]
[Source "ChessBase"]
[SourceQuality "1"]
[TimeControl "40/5400+30:1800+30"]

1. e4 {[%emt 0:00:17]} c5 {[%emt 0:00:11]} 2. Nf3 {[%emt 0:00:04]} d6 {[%emt 0:00:04]} 3. d4 {[%emt 0:00:03]} cxd4 {[%emt 0:00:03]} 4. Nxd4 {[%emt 0:00:05]} Nf6 {[%emt 0:00:04]} 5. Nc3 {[%emt 0:00:04]} a6 {[%emt 0:00:05]} 6. h4 {[%emt 0:00:13]} e5 {[%emt 0:00:06]} 7. Nb3 {[%emt 0:00:02]} Be7 {[%emt 0:00:05]} 8. Be2 {[%emt 0:00:07]} Be6 {[%emt 0:00:06]} 9. f4 {[%emt 0:00:07]} b5 {[%emt 0:00:10]} 10. f5 {[%emt 0:02:30]} Bd7 {[%emt 0:18:00]} 11. a3 {[%emt 0:03:24]} Bc6 {[%emt 0:01:49]} 12. Bf3 {[%emt 0:00:36]} a5 {[%emt 0:01:59]} 13. Qe2 {[%emt 0:07:53]} b4 {[%emt 0:09:22]} 14. axb4 {[%emt 0:00:30]} axb4 {[%emt 0:00:21]} 15. Rxa8 {[%emt 0:00:04]} Bxa8 {[%emt 0:00:10]} 16. Na2 {[%emt 0:00:04]} O-O {[%emt 0:19:02]} 17. O-O {[%emt 0:04:36]} d5 {[%emt 0:11:24]} 18. Rd1 {[%emt 0:06:44]} Qb6+ {[%emt 0:02:07]} 19. Be3 {[%emt 0:00:06]} d4 {[%emt 0:00:04]} 20. Bf2 {[%emt 0:00:03]} Rc8 {[%emt 0:01:10]} 21. Nac1 {[%emt 0:02:01]} Nbd7 {[%emt 0:01:50]} 22. g4 {[%emt 0:01:08]} Nc5 {[%emt 0:03:14]} 23. Nxc5 {[%emt 0:00:53]} Qxc5 {[%emt 0:00:27]} 24. Nd3 {[%emt 0:00:09]} Qxc2 {[%emt 0:02:47]} 25. Rc1 {[%emt 0:00:48]} Qxc1+ {[%emt 0:00:10]} 26. Nxc1 {[%emt 0:00:05]} Rxc1+ {[%emt 0:00:06]} 27. Kg2 {[%emt 0:00:23]} Bc6 {[%emt 0:04:41]} 28. g5 {[%emt 0:00:52]} Ne8 {[%emt 0:02:02]} 29. Qd2 {[%emt 0:01:17]} Rc4 {[%emt 0:02:22]} 30. Qd3 {[%emt 0:03:21]} Nd6 {[%emt 0:05:35]} 31. Qb3 {[%emt 0:02:05]} Rc5 {[%emt 0:05:17]} 32. g6 {[%emt 0:11:20]} hxg6 {[%emt 0:01:29]} 33. fxg6 {[%emt 0:00:01]} Kf8 {[%emt 0:00:58]} 34. h5 {[%emt 0:00:06]} Be8 {[%emt 0:01:30]} 35. Be1 {[%emt 0:04:45]} fxg6 {[%emt 0:02:40]} 36. Bxb4 {[%emt 0:00:01]} Rb5 {[%emt 0:00:58]} 37. Qa3 {[%emt 0:00:30]} Nc8 {[%emt 0:01:02]} 38. Bxe7+ {[%emt 0:00:00]} Nxe7 {[%emt 0:00:05]} 39. Be2 {[%emt 0:00:15]} Rb6 {[%emt 0:00:55]} 40. hxg6 {[%emt 0:00:14]} Bxg6 {[%emt 0:02:27]} 41. Bd3 {[%emt 0:33:58]} 1/2-1/2

[Event "XII Cracow ICC-B 2024"]
[Site "Krakow"]
[Date "2024.06.23"]
[Round "3.6"]
[White "Przybylski, Bartosz"]
[Black "Trybus, Dominika"]
[Result "1-0"]
[ECO "B23"]
[WhiteElo "2085"]
[BlackElo "1893"]
[Annotator "RC"]
[PlyCount "109"]
[EventDate "2024.06.20"]
[EventType "swiss"]
[EventCountry "POL"]
[SourceTitle "playchess.com"]
[Source "ChessBase"]
[SourceQuality "1"]
[TimeControl "40/5400+30:1800+30"]

1. e4 {[%emt 0:06:55]} c5 {[%emt 0:00:05]} 2. Nc3 {[%emt 0:00:22]} e6 {[%emt 0:00:26]} 3. d4 {[%emt 0:02:44]} cxd4 {[%emt 0:00:18]} 4. Qxd4 {[%emt 0:00:06]} Nc6 {[%emt 0:00:09]} 5. Qd3 {[%emt 0:00:09]} a6 {[%emt 0:01:50]} 6. Qg3 {[%emt 0:01:00]} Nb4 {[%emt 0:02:55]} 7. Bd3 {[%emt 0:07:53]} d6 {[%emt 0:06:28]} 8. Nge2 {[%emt 0:03:29]} Nf6 {[%emt 0:01:41]} 9. a3 {[%emt 0:01:35]} Nxd3+ {[%emt 0:02:53]} 10. Qxd3 {[%emt 0:00:08]} Be7 {[%emt 0:13:02]} 11. Bf4 {[%emt 0:01:04]} O-O {[%emt 0:10:15]} 12. O-O-O {[%emt 0:00:37]} e5 {[%emt 0:01:03]} 13. Bg5 {[%emt 0:00:21]} Ng4 {[%emt 0:02:51]} 14. Bxe7 {[%emt 0:02:33]} Qxe7 {[%emt 0:00:14]} 15. Rdf1 {[%emt 0:05:58]} Be6 {[%emt 0:03:44]} 16. f3 {[%emt 0:01:41]} Nf6 {[%emt 0:04:04]} 17. g4 {[%emt 0:01:00]} Rfd8 {[%emt 0:00:37]} 18. h4 {[%emt 0:05:11]} b5 {[%emt 0:01:09]} 19. Nd5 {[%emt 0:01:37]} Bxd5 {[%emt 0:02:10]} 20. exd5 {[%emt 0:00:09]} e4 {[%emt 0:01:20]} 21. fxe4 {[%emt 0:02:06]} Qxe4 {[%emt 0:04:48]} 22. Qxe4 {[%emt 0:00:28]} Nxe4 {[%emt 0:00:06]} 23. Rf4 {[%emt 0:01:10]} Re8 {[%emt 0:01:08]} 24. Rhf1 {[%emt 0:13:54]} Ra7 {[%emt 0:02:07]} 25. Nd4 {[%emt 0:02:58]} Nf6 {[%emt 0:03:47]} 26. Nf5 {[%emt 0:02:00]} Nxd5 {[%emt 0:04:59]} 27. Rd4 {[%emt 0:02:45]} Nb6 {[%emt 0:03:51]} 28. Nxd6 {[%emt 0:00:33]} Rd7 {[%emt 0:02:53]} 29. Rxf7 {[%emt 0:05:53]} Rxf7 {[%emt 0:07:13]} 30. Nxe8 {[%emt 0:00:13]} Nc4 {[%emt 0:00:25]} 31. b3 {[%emt 0:09:53]} Rf1+ {[%emt 0:01:21]} 32. Rd1 {[%emt 0:00:08]} Rxd1+ {[%emt 0:00:28]} 33. Kxd1 {[%emt 0:00:06]} Nxa3 {[%emt 0:00:11]} 34. Nc7 {[%emt 0:00:28]} a5 {[%emt 0:02:47]} 35. Kc1 {[%emt 0:01:41]} Kf7 {[%emt 0:02:37]} 36. Kb2 {[%emt 0:00:38]} b4 {[%emt 0:00:29]} 37. c4 {[%emt 0:00:32]} Kf6 {[%emt 0:02:12]} 38. Ne8+ {[%emt 0:01:43]} Kf7 {[%emt 0:00:27]} 39. Nd6+ {[%emt 0:00:55]} Ke6 {[%emt 0:01:27]} 40. Nb7 {[%emt 0:01:38]} Kd7 {[%emt 0:02:08]} 41. Nxa5 {[%emt 0:31:27]} Kc7 {[%emt 0:31:10]} 42. c5 {[%emt 0:01:20]} g6 {[%emt 0:00:00]} 43. g5 {[%emt 0:00:00]} Nb5 {[%emt 0:00:00]} 44. Kc2 {[%emt 0:00:00]} Nd4+ {[%emt 0:00:00]} 45. Kd3 {[%emt 0:00:00]} Nf3 {[%emt 0:00:00]} 46. Kc4 {[%emt 0:00:00]} Nxh4 {[%emt 0:00:00]} 47. Kxb4 {[%emt 0:00:00]} Nf3 {[%emt 0:00:00]} 48. Kc4 {[%emt 0:00:00]} Nxg5 {[%emt 0:00:00]} 49. b4 {[%emt 0:00:00]} h5 {[%emt 0:00:00]} 50. b5 {[%emt 0:00:00]} h4 {[%emt 0:00:00]} 51. b6+ {[%emt 0:00:00]} Kb8 {[%emt 0:00:00]} 52. c6 {[%emt 0:00:00]} h3 {[%emt 0:00:00]} 53. c7+ {[%emt 0:00:00]} Kc8 {[%emt 0:00:00]} 54. Nc6 {[%emt 0:00:00]} h2 {[%emt 0:00:00]} 55. Ne7+ {[%emt 0:00:00]} 1-0